lending/lending_fUSD_20240824
["ID","MTS","AMOUNT","RATE_DAILY","PERIOD"]
[335802324,1724497832295,-2375.16069498,0.00010795,2]
[335802325,1724497832306,-261.15578167,0.00010795,2]
[335802326,1724497832318,-517.85068696,0.00010795,2]
[335802327,1724497832329,-365.18205345,0.00010795,2]
[335802328,1724497832339,-12207.5368,0.00010795,2]
[335802329,1724497832348,-402.0441,0.00010795,2]
[335802330,1724497832358,-815.58,0.00010795,2]
[335802331,1724497832367,-1075.68439056,0.00010799,2]
[335802332,1724497832376,-401.92563255,0.000108,2]
[335802333,1724497832385,-317.61944198,0.00010858,2]
[335802334,1724497832395,-1170.10220725,0.00010862,2]
[335802335,1724497832404,-155.24468221,0.00010873,2]
[335802336,1724497832414,-342.41627858,0.00010873,2]
[335802337,1724497832423,-427.64535,0.0001089,2]
[335802338,1724497832433,-427.64536,0.0001089,2]
[335802339,1724497832443,-307.90693662,0.0001089,2]
[335802340,1724497832454,-113302.3874,0.00010892,2]
[335802341,1724497832464,-299.99,0.00010892,2]
[335802342,1724497832473,-2678.89,0.00010892,2]
[335802343,1724497832483,-564.1,0.00010894,2]
[335802344,1724497832493,-267.5074317,0.00010899,2]
[335802345,1724497832502,-153.85974612,0.000109,2]
[335802346,1724497832511,-4157.207509,0.000109,2]
[335802347,1724497832521,-427.64535,0.000109,2]
[335802349,1724497832530,-427.64536,0.000109,2]
[335802351,1724497832539,-427.64536,0.000109,2]
[335802353,1724497832550,-427.64535,0.000109,2]
[335802355,1724497832560,-388.22678,0.0001095,2]
[335802357,1724497832569,-500.0,0.00010958,2]
[335802359,1724497832579,-500.0,0.00010958,2]
[335802361,1724497832589,-500.0,0.00010958,2]
[335802363,1724497832598,-500.0,0.00010958,2]
[335802365,1724497832608,-500.0,0.00010958,2]
[335802367,1724497832617,-500.0,0.00010958,2]
[335802369,1724497832626,-500.0,0.00010958,2]
[335802371,1724497832636,-509.40278361,0.00010958,2]
[335802373,1724497832645,-500.0,0.00010958,2]
[335802375,1724497832656,-500.0,0.00010958,2]
[335802377,1724497832666,-509.32271729,0.00010958,2]
[335802379,1724497832676,-500.0,0.00010958,2]
[335802381,1724497832685,-525.71847962,0.00010958,2]
[335802383,1724497832694,-500.0,0.00010958,2]
[335802385,1724497832703,-503.957174,0.00010958,2]
[335802387,1724497832713,-526.59168512,0.00010958,2]
[335802389,1724497832730,-512.68866243,0.00010958,2]
[335802391,1724497832741,-508.748586,0.00010958,2]
[335802393,1724497832752,-551.59924657,0.00010958,2]
[335802394,1724497832761,-519.66153294,0.00010958,2]
[335802396,1724497832770,-506.63526021,0.00010958,2]
[335802397,1724497832780,-524.10111143,0.00010958,2]
[335802398,1724497832789,-509.53144535,0.00010958,2]
[335802399,1724497832799,-1420.75,0.00010958,2]
[335802400,1724497832808,-515.12238787,0.00010958,2]
[335802401,1724497832817,-500.0,0.00010958,2]
[335802402,1724497832827,-526.60792658,0.00010958,2]
[335802403,1724497832836,-505.45798422,0.00010958,2]
[335802404,1724497832850,-531.4246382,0.00010958,2]
[335802405,1724497832860,-500.0,0.00010958,2]
[335802406,1724497832870,-509.53296962,0.00010958,2]
[335802407,1724497832881,-402.25443738,0.00010958,2]
[335802408,1724497832903,-124.93106453,0.00010958,2]
[335802409,1724497832913,-243.8164775,0.00010958,2]
[335802410,1724497832926,-285.11200287,0.00010958,2]
[335802411,1724497832936,-521.33150609,0.00010958,2]
[335802412,1724497832945,-500.0,0.00010958,2]
[335802413,1724497832955,-518.08865891,0.00010958,2]
[335802414,1724497832964,-529.04368476,0.00010958,2]
[335802415,1724497832973,-519.10412078,0.00010958,2]
[335802416,1724497832983,-508.64032701,0.00010958,2]
[335802417,1724497832992,-518.93179044,0.00010958,2]
[335802418,1724497833001,-510.92826771,0.00010958,2]
[335802419,1724497833010,-513.23837449,0.00010958,2]
[335802420,1724497833020,-526.4356642,0.00010958,2]
[335802421,1724497833029,-506.52650027,0.00010958,2]
[335802422,1724497833039,-511.89807339,0.00010958,2]
[335802423,1724497833048,-500.0,0.00010958,2]
[335802424,1724497833057,-543.9101318,0.00010958,2]
[335802425,1724497833066,-534.13207488,0.00010958,2]
[335802426,1724497833076,-527.24644136,0.00010958,2]
[335802427,1724497833086,-500.0,0.00010958,2]
[335802428,1724497833095,-516.60281457,0.00010958,2]
[335802429,1724497833104,-513.77619856,0.00010958,2]
[335802430,1724497833113,-500.0,0.00010958,2]
[335802431,1724497833124,-508.36019354,0.00010958,2]
[335802432,1724497833133,-203.41919519,0.00010958,2]
[335802433,1724497833145,-263.12963291,0.00010958,2]
[335802434,1724497833155,-500.0,0.00010958,2]
[335802435,1724497833164,-515.01660814,0.00010958,2]
[335802436,1724497833173,-500.0,0.00010958,2]
[335802437,1724497833183,-507.41416905,0.00010958,2]
[335802438,1724497833192,-514.74732607,0.00010958,2]
[335802439,1724497833202,-525.61767959,0.00010958,2]
[335802440,1724497833211,-515.17787189,0.00010958,2]
[335802441,1724497833224,-354.99671235,0.00010958,2]
[335802442,1724497833236,-145.00328765,0.00010958,2]
[335802443,1724497833247,-485.81941399,0.00010958,2]
[335802444,1724497833257,-14.27977939,0.00010958,2]
[335802445,1724497833268,-517.47002792,0.00010958,2]
[335802446,1724497833277,-522.29376895,0.00010958,2]
[335802447,1724497833286,-77.45756351,0.00010958,2]
[335802448,1724497833298,-422.54243649,0.00010958,2]
[335802449,1724497833308,-502.7834391,0.00010958,2]
[335802450,1724497833317,-525.55228178,0.00010958,2]
[335802451,1724497833327,-510.43668409,0.00010958,2]
[335802452,1724497833336,-500.0,0.00010958,2]
[335802453,1724497833346,-511.1278783,0.00010958,2]
[335802454,1724497833355,-500.0,0.00010958,2]
[335802455,1724497833364,-511.67416363,0.00010958,2]
[335802456,1724497833373,-516.69135641,0.00010958,2]
[335802457,1724497833383,-496.16735774,0.00010958,2]
[335802458,1724497833392,-509.20178241,0.00010958,2]
[335802459,1724497833401,-525.71377124,0.00010958,2]
[335802460,1724497833411,-529.41361368,0.00010958,2]
[335802461,1724497833420,-510.53621416,0.00010958,2]
[335802462,1724497833429,-515.82837169,0.00010958,2]
[335802463,1724497833438,-510.07636386,0.00010958,2]
[335802464,1724497833448,-519.35680362,0.00010958,2]
[335802465,1724497833458,-500.0,0.00010958,2]
[335802466,1724497833469,-521.45241238,0.00010958,2]
[335802467,1724497833478,-515.11067117,0.00010958,2]
[335802468,1724497833488,-500.0,0.00010958,2]
[335802469,1724497833497,-635.40994293,0.00010958,2]
[335802470,1724497833507,-511.68845578,0.00010958,2]
[335802471,1724497833518,-504.74428292,0.00010958,2]
[335802472,1724497833528,-521.84768813,0.00010958,2]
[335802473,1724497833537,-514.75021393,0.00010958,2]
[335802474,1724497833547,-150.0,0.00010958,2]
[335802475,1724497833557,-506.3077352,0.00010958,2]
[335802476,1724497833571,-520.03512783,0.00010958,2]
[335802477,1724497833581,-518.84742403,0.00010958,2]
[335802478,1724497833591,-513.7287017,0.00010958,2]
[335802479,1724497833601,-500.0,0.00010958,2]
[335802480,1724497833610,-518.85350942,0.00010958,2]
[335802481,1724497833620,-500.0,0.00010958,2]
[335802482,1724497833629,-500.0,0.00010958,2]
[335802483,1724497833639,-507.35069858,0.00010958,2]
[335802484,1724497833648,-500.0,0.00010958,2]
[335802485,1724497833657,-518.68376066,0.00010958,2]
[335802486,1724497833667,-524.98519807,0.00010958,2]
[335802487,1724497833676,-521.21138051,0.00010958,2]
[335802488,1724497833686,-506.18481191,0.00010958,2]
[335802489,1724497833696,-511.45881077,0.00010958,2]
[335802490,1724497833705,-509.17864741,0.00010958,2]
[335802491,1724497833716,-500.0,0.00010958,2]
[335802492,1724497833726,-518.23109037,0.00010958,2]
[335802493,1724497833736,-500.0,0.00010958,2]
[335802494,1724497833746,-500.0,0.00010958,2]
[335802495,1724497833757,-516.01523571,0.00010958,2]
[335802496,1724497833768,-500.0,0.00010958,2]
[335802497,1724497833778,-617.33083774,0.00010958,2]
[335802498,1724497833788,-500.0,0.00010958,2]
[335802499,1724497833797,-500.0,0.00010958,2]
[335802500,1724497833807,-246.0750971,0.00010958,2]
[335802501,1724497833817,-500.0,0.00010958,2]
[335802502,1724497833827,-507.10420354,0.00010958,2]
[335802503,1724497833838,-500.0,0.00010958,2]
[335802504,1724497833849,-500.0,0.00010958,2]
[335802505,1724497833859,-500.0,0.00010958,2]
[335802506,1724497833869,-500.0,0.00010958,2]
[335802507,1724497833880,-500.0,0.00010958,2]
[335802508,1724497833889,-500.0,0.00010958,2]
[335802509,1724497833899,-503.48582222,0.00010958,2]
[335802510,1724497833910,-178.46668413,0.00010958,2]
[335802511,1724497833924,-321.53331587,0.00010958,2]
[335802512,1724497833934,-533.97508281,0.00010958,2]
[335802513,1724497833943,-500.0,0.00010958,2]
[335802514,1724497833952,-508.28370076,0.00010958,2]
[335802515,1724497833961,-500.0,0.00010958,2]
[335802516,1724497833973,-500.0,0.00010958,2]
[335802517,1724497833982,-392.95336679,0.00010958,2]
[335802518,1724497833995,-107.04663321,0.00010958,2]
[335802519,1724497834005,-193.25336679,0.00010958,2]
[335802520,1724497834017,-306.74663321,0.00010958,2]
[335802521,1724497834027,-500.0,0.00010958,2]
[335802522,1724497834036,-500.0,0.00010958,2]
[335802523,1724497834045,-500.0,0.00010958,2]
[335802524,1724497834055,-500.0,0.00010958,2]
[335802525,1724497834065,-500.0,0.00010958,2]
[335802526,1724497834075,-500.0,0.00010958,2]
[335802527,1724497834084,-500.0,0.00010958,2]
[335802528,1724497834093,-502.61425903,0.00010958,2]
[335802529,1724497834102,-500.0,0.00010958,2]
[335802530,1724497834112,-460.22398105,0.00010958,2]
[335802531,1724497834124,-39.77601895,0.00010958,2]
[335802532,1724497834133,-212.11042622,0.00010958,2]
[335802533,1724497834145,-287.88957378,0.00010958,2]
[335802534,1724497834155,-148.75216167,0.00010958,2]
[335802540,1724497838227,-351.24783833,0.00010958,2]
[335802541,1724497838237,-500.0,0.00010958,2]
[335802542,1724497838246,-500.0,0.00010958,2]
[335802543,1724497838255,-500.0,0.00010958,2]
[335802544,1724497838264,-500.0,0.00010958,2]
[335802545,1724497838273,-500.0,0.00010958,2]
[335802546,1724497838282,-500.0,0.00010958,2]
[335802547,1724497838291,-500.0,0.00010958,2]
[335802548,1724497838301,-500.0,0.00010958,2]
[335802549,1724497838315,-500.0,0.00010958,2]
[335802550,1724497838325,-500.0,0.00010958,2]
[335802551,1724497838335,-500.0,0.00010958,2]
[335802552,1724497838345,-500.0,0.00010958,2]
[335802553,1724497838355,-500.0,0.00010958,2]
[335802554,1724497838365,-506.56345061,0.00010958,2]
[335802555,1724497838375,-186.69173807,0.00010958,2]
[335802556,1724497838386,-313.30826193,0.00010958,2]
[335802557,1724497838396,-276.74928631,0.00010958,2]
[335802558,1724497838407,-223.25071369,0.00010958,2]
[335802559,1724497838417,-34.57166315,0.00010958,2]
[335802560,1724497838428,-465.42833685,0.00010958,2]
[335802561,1724497838437,-392.50827213,0.00010958,2]
[335802562,1724497838447,-500.0,0.00010958,2]
[335802563,1724497838456,-560.40617989,0.00010958,2]
[335802564,1724497838466,-500.0,0.00010958,2]
[335802565,1724497838476,-500.0,0.00010958,2]
[335802566,1724497838485,-153.58881113,0.00010958,2]
[335802567,1724497838498,-346.41118887,0.00010958,2]
[335802568,1724497838508,-523.98175744,0.00010958,2]
[335802569,1724497838517,-500.0,0.00010958,2]
[335802570,1724497838526,-500.0,0.00010958,2]
[335802571,1724497838536,-504.64426852,0.00010958,2]
[335802572,1724497838546,-500.0,0.00010958,2]
[335802573,1724497838556,-150.098844,0.00010958,2]
[335802574,1724497838565,-150.098844,0.00010958,2]
[335802575,1724497838575,-500.0,0.00010958,2]
[335802576,1724497838584,-500.0,0.00010958,2]
[335802577,1724497838594,-150.098844,0.00010958,2]
[335802578,1724497838605,-500.0,0.00010958,2]
[335802579,1724497838615,-500.0,0.00010958,2]
[335802580,1724497838624,-500.0,0.00010958,2]
[335802581,1724497838634,-155.635153,0.00010958,2]
[335802582,1724497838643,-155.635153,0.00010958,2]
[335802583,1724497838653,-293.79294453,0.00010958,2]
[335802584,1724497838689,-206.20705547,0.00010958,2]
[335802585,1724497838699,-155.635153,0.00010958,2]
[335802586,1724497838709,-500.0,0.00010958,2]
[335802587,1724497838719,-500.0,0.00010958,2]
[335802588,1724497838729,-52.65779153,0.00010958,2]
[335802589,1724497838740,-362.93997079,0.00010958,2]
[335802590,1724497838756,-84.40223768,0.00010958,2]
[335802591,1724497838766,-500.0,0.00010958,2]
[335802592,1724497838775,-500.0,0.00010958,2]
[335802593,1724497838785,-500.0,0.00010958,2]
[335802594,1724497838794,-500.0,0.00010958,2]
[335802595,1724497838803,-500.0,0.00010958,2]
[335802596,1724497838812,-500.0,0.00010958,2]
[335802597,1724497838821,-500.0,0.00010958,2]
[335802598,1724497838830,-500.0,0.00010958,2]
[335802599,1724497838842,-561.80387977,0.00010958,2]
[335802600,1724497838853,-501.01137996,0.00010958,2]
[335802602,1724497838861,-500.0,0.00010958,2]
[335802604,1724497838870,-8.42896758,0.00010958,2]
[335802606,1724497838883,-506.95069954,0.00010958,2]
[335802608,1724497838892,-500.0,0.00010958,2]
[335802610,1724497838901,-400.37053991,0.00010958,2]
[335802612,1724497838910,-500.0,0.00010958,2]
[335802614,1724497838921,-500.0,0.00010958,2]
[335802616,1724497838930,-500.0,0.00010958,2]
[335802618,1724497838939,-500.0,0.00010958,2]
[335802620,1724497838949,-500.0,0.00010958,2]
[335802622,1724497838959,-500.0,0.00010958,2]
[335802624,1724497838971,-500.0,0.00010958,2]
[335802626,1724497838990,-500.0,0.00010958,2]
[335802628,1724497838999,-500.0,0.00010958,2]
[335802630,1724497839008,-500.0,0.00010958,2]
[335802632,1724497839017,-500.0,0.00010958,2]
[335802634,1724497839026,-118.09982083,0.00010958,2]
[335802637,1724497839043,-381.90017917,0.00010958,2]
[335802639,1724497839051,-182.07557136,0.00010958,2]
[335802641,1724497839063,-317.92442864,0.00010958,2]
[335802643,1724497839074,-500.0,0.00010958,2]
[335802645,1724497839083,-500.0,0.00010958,2]
[335802647,1724497839093,-500.0,0.00010958,2]
[335802649,1724497839102,-11.19975987,0.00010958,2]
[335802652,1724497839116,-426.35735425,0.00010958,2]
[335802654,1724497839127,-62.44288588,0.00010958,2]
[335802656,1724497839136,-500.0,0.00010958,2]
[335802658,1724497839145,-500.0,0.00010958,2]
[335802660,1724497839155,-500.0,0.00010958,2]
[335802662,1724497839165,-500.0,0.00010958,2]
[335802664,1724497839175,-211.6077008,0.00010958,2]
[335802666,1724497839186,-500.0,0.00010958,2]
[335802668,1724497839196,-503.89543535,0.00010958,2]
[335802670,1724497839205,-632.0,0.00010958,2]
[335802672,1724497839214,-500.0,0.00010958,2]
[335802674,1724497839225,-2340.07,0.00010958,2]
[335802676,1724497839234,-500.0,0.00010958,2]
[335802678,1724497839245,-500.0,0.00010958,2]
[335802680,1724497839255,-500.0,0.00010958,2]
[335802682,1724497839265,-500.0,0.00010958,2]
[335802684,1724497839275,-500.0,0.00010958,2]
[335802686,1724497839284,-500.0,0.00010958,2]
[335802688,1724497839294,-500.0,0.00010958,2]
[335802690,1724497839303,-510.20047117,0.00010958,2]
[335802692,1724497839312,-500.0,0.00010958,2]
[335802694,1724497839321,-500.0,0.00010958,2]
[335802696,1724497839331,-500.0,0.00010958,2]
[335802698,1724497839339,-500.0,0.00010958,2]
[335802699,1724497839349,-503.40928091,0.00010958,2]
[335802702,1724497839358,-500.0,0.00010958,2]
[335802704,1724497839369,-276.61610977,0.00010958,2]
[335802706,1724497839379,-510.01805137,0.00010958,2]
[335802708,1724497839389,-500.0,0.00010958,2]
[335802710,1724497839398,-633.71,0.00010958,2]
[335802712,1724497839407,-500.0,0.00010958,2]
[335802714,1724497839416,-500.0,0.00010958,2]
[335802716,1724497839426,-500.0,0.00010958,2]
[335802718,1724497839435,-500.0,0.00010958,2]
[335802720,1724497839444,-500.0,0.00010958,2]
[335802721,1724497839453,-500.0,0.00010958,2]
[335802723,1724497839462,-500.0,0.00010958,2]
[335802725,1724497839475,-500.0,0.00010958,2]
[335802727,1724497839484,-500.0,0.00010958,2]
[335802729,1724497839494,-500.0,0.00010958,2]
[335802731,1724497839503,-500.0,0.00010958,2]
[335802733,1724497839512,-500.0,0.00010958,2]
[335802735,1724497839522,-500.0,0.00010958,2]
[335802737,1724497839531,-500.0,0.00010958,2]
[335802739,1724497839541,-500.0,0.00010958,2]
[335802741,1724497839550,-500.0,0.00010958,2]
[335802743,1724497839559,-500.0,0.00010958,2]
[335802745,1724497839568,-500.0,0.00010958,2]
[335802746,1724497839577,-500.0,0.00010958,2]
[335802749,1724497839588,-500.0,0.00010958,2]
[335802751,1724497839600,-500.0,0.00010958,2]
[335802753,1724497839610,-500.0,0.00010958,2]
[335802755,1724497839620,-500.0,0.00010958,2]
[335802757,1724497839629,-813.66,0.00010958,2]
[335802758,1724497839638,-121.48421785,0.00010958,2]
[335802761,1724497839650,-513.81578215,0.00010958,2]
[335802763,1724497839659,-500.0,0.00010958,2]
[335802764,1724497839668,-500.0,0.00010958,2]
[335802767,1724497839678,-500.0,0.00010958,2]
[335802769,1724497839687,-500.0,0.00010958,2]
[335802771,1724497839697,-500.0,0.00010958,2]
[335802772,1724497839706,-500.0,0.00010958,2]
[335802774,1724497839715,-500.0,0.00010958,2]
[335802776,1724497839726,-500.0,0.00010958,2]
[335802778,1724497839735,-500.0,0.00010958,2]
[335802780,1724497839745,-500.0,0.00010958,2]
[335802782,1724497839754,-500.0,0.00010958,2]
[335802784,1724497839763,-500.0,0.00010958,2]
[335802786,1724497839774,-500.0,0.00010958,2]
[335802788,1724497839783,-500.0,0.00010958,2]
[335802790,1724497839793,-500.0,0.00010958,2]
[335802793,1724497839802,-790.99,0.00010958,2]
[335802795,1724497839812,-500.0,0.00010958,2]
[335802796,1724497839821,-500.0,0.00010958,2]
[335802798,1724497839831,-1063.67,0.00010958,2]
[335802800,1724497839841,-500.0,0.00010958,2]
[335802802,1724497839853,-500.0,0.00010958,2]
[335802804,1724497839863,-500.0,0.00010958,2]
[335802806,1724497839873,-51.71750415,0.00010958,2]
[335802808,1724497839888,-448.28249585,0.00010958,2]
[335802810,1724497839899,-500.0,0.00010958,2]
[335802811,1724497839909,-225.37024869,0.00010958,2]
[335802831,1724497840340,-1167.87545728,0.00010465,2]
[335802833,1724497840352,-1809.7140164,0.00010465,2]
[335802836,1724497840363,-2732.59833681,0.00010465,2]
[335802855,1724497840536,-3118.47238951,0.00010465,2]
[335802857,1724497840545,-274.62975131,0.00010958,2]
[335802859,1724497840555,-500.0,0.00010958,2]
[335802861,1724497840566,-500.0,0.00010958,2]
[335802863,1724497840575,-500.0,0.00010958,2]
[335802865,1724497840585,-500.0,0.00010958,2]
[335802867,1724497840595,-500.0,0.00010958,2]
[335802869,1724497840605,-348.40281185,0.00010958,2]
[335802871,1724497840614,-500.0,0.00010958,2]
[335802873,1724497840623,-911.07,0.00010958,2]
[335802874,1724497840632,-778.43,0.00010958,2]
[335802876,1724497840642,-563.30038855,0.00010958,2]
[335802878,1724497840651,-448.70275444,0.00010958,2]
[335802880,1724497840661,-500.0,0.00010958,2]
[335802882,1724497840670,-500.0,0.00010958,2]
[335802884,1724497840679,-500.0,0.00010958,2]
[335802886,1724497840688,-500.0,0.00010958,2]
[335802888,1724497840697,-156.82,0.00010959,2]
[335802890,1724497840706,-250.0,0.00010959,2]
[335802892,1724497840715,-150.16,0.00010959,2]
[335802894,1724497840726,-150.0,0.00010959,2]
[335802895,1724497840735,-155.0,0.00010979,2]
[335802897,1724497840745,-500.0,0.00010988,2]
[335802899,1724497840754,-507.15772195,0.00010992,2]
[335802901,1724497840764,-511.07016421,0.00010992,2]
[335802903,1724497840773,-500.0,0.00010992,2]
[335802905,1724497840783,-431.40776576,0.00010992,2]
[335802907,1724497840792,-500.0,0.00010992,2]
[335802909,1724497840801,-500.0,0.00010992,2]
[335802911,1724497840810,-500.0,0.00010992,2]
[335802913,1724497840820,-500.0,0.00010992,2]
[335802915,1724497840829,-500.0,0.00010992,2]
[335802917,1724497840838,-500.0,0.00010992,2]
[335802919,1724497840852,-515.28124494,0.00010992,2]
[335802921,1724497840862,-500.0,0.00010992,2]
[335802923,1724497840871,-197.92785141,0.00010992,2]
[335802925,1724497840881,-500.0,0.00010992,2]
[335802927,1724497840892,-813.66,0.00010992,2]
[335802929,1724497840901,-635.3,0.00010992,2]
[335802931,1724497840910,-500.0,0.00010992,2]
[335802932,1724497840920,-500.0,0.00010992,2]
[335802933,1724497840929,-500.0,0.00010992,2]
[335802935,1724497840939,-500.0,0.00010992,2]
[335802937,1724497840948,-500.0,0.00010992,2]
[335802939,1724497840957,-500.0,0.00010992,2]
[335802941,1724497840969,-510.23045378,0.00010992,2]
[335802943,1724497840978,-500.0,0.00010992,2]
[335802945,1724497840989,-506.15493001,0.00010992,2]
[335802946,1724497840997,-500.0,0.00010992,2]
[335802948,1724497841007,-500.0,0.00010992,2]
[335802950,1724497841016,-500.0,0.00010992,2]
[335802952,1724497841026,-500.0,0.00010992,2]
[335802954,1724497841036,-500.0,0.00010992,2]
[335802956,1724497841045,-649.9768514,0.00010993,2]
[335802958,1724497841054,-502.98219683,0.00010993,2]
[335802960,1724497841065,-500.72362761,0.00010993,2]
[335802962,1724497841073,-496.59728672,0.00010993,2]
[335802964,1724497841083,-300.0,0.00010993,2]
[335802966,1724497841091,-500.0,0.00010993,2]
[335802968,1724497841100,-500.0,0.00010993,2]
[335802969,1724497841110,-208.83191032,0.00010993,2]
[335802971,1724497841119,-502.75644757,0.00010993,2]
[335802973,1724497841128,-501.07965549,0.00010993,2]
[335802975,1724497841137,-488.0781542,0.00010993,2]
[335802977,1724497841147,-507.6060872,0.00010993,2]
[335802979,1724497841156,-482.34310764,0.00010993,2]
[335802981,1724497841165,-512.75917372,0.00010993,2]
[335802983,1724497841174,-500.0,0.00010993,2]
[335802985,1724497841184,-500.0,0.00010993,2]
[335802987,1724497841194,-500.0,0.00010993,2]
[335802989,1724497841203,-508.54281952,0.00010993,2]
[335802991,1724497841212,-517.43124738,0.00010993,2]
[335802992,1724497841224,-508.33147498,0.00010993,2]
[335802994,1724497841234,-508.24684196,0.00010993,2]
[335802996,1724497841243,-500.0,0.00010993,2]
[335802998,1724497841252,-508.4216135,0.00010993,2]
[335803000,1724497841262,-188.55704879,0.00010993,2]
[335803002,1724497841272,-500.0,0.00010993,2]
[335803004,1724497841281,-498.45752207,0.00010993,2]
[335803006,1724497841290,-500.0,0.00010993,2]
[335803008,1724497841299,-503.24707268,0.00010993,2]
[335803010,1724497841308,-500.0,0.00010993,2]
[335803012,1724497841318,-387.41244378,0.00010993,2]
[335803014,1724497841328,-500.0,0.00010993,2]
[335803016,1724497841338,-500.0,0.00010993,2]
[335803018,1724497841347,-207.6337712,0.00010993,2]
[335803020,1724497841357,-500.0,0.00010993,2]
[335803022,1724497841366,-500.0,0.00010993,2]
[335803024,1724497841375,-500.0,0.00010993,2]
[335803026,1724497841384,-259.80601393,0.00010993,2]
[335803028,1724497841393,-500.0,0.00010993,2]
[335803029,1724497841402,-500.0,0.00010993,2]
[335803031,1724497841411,-500.0,0.00010993,2]
[335803033,1724497841420,-500.0,0.00010993,2]
[335803035,1724497841429,-500.0,0.00010993,2]
[335803037,1724497841439,-498.4654927,0.00010993,2]
[335803039,1724497841448,-522.76377682,0.00010993,2]
[335803041,1724497841457,-516.4403767,0.00010993,2]
[335803043,1724497841466,-508.78304106,0.00010993,2]
[335803045,1724497841478,-511.60791487,0.00010993,2]
[335803047,1724497841487,-506.54370003,0.00010993,2]
[335803049,1724497841496,-517.98553906,0.00010993,2]
[335803051,1724497841506,-508.31717497,0.00010993,2]
[335803053,1724497841516,-507.1930344,0.00010993,2]
[335803055,1724497841525,-508.69694353,0.00010993,2]
[335803057,1724497841535,-507.29515374,0.00010993,2]
[335803059,1724497841544,-510.21483959,0.00010993,2]
[335803061,1724497841553,-507.20848914,0.00010993,2]
[335803063,1724497841562,-507.47818635,0.00010993,2]
[335803065,1724497841572,-514.54929707,0.00010993,2]
[335803067,1724497841581,-514.57165233,0.00010993,2]
[335803069,1724497841590,-515.2062426,0.00010993,2]
[335803071,1724497841600,-306.44116952,0.00010993,2]
[335803073,1724497841609,-175.4848678,0.00010993,2]
[335803075,1724497841618,-500.0,0.00010993,2]
[335803076,1724497841628,-500.0,0.00010993,2]
[335803078,1724497841638,-500.0,0.00010994,2]
[335803080,1724497841647,-500.0,0.00010994,2]
[335803082,1724497841657,-500.0,0.00010994,2]
[335803084,1724497841666,-500.0,0.00010994,2]
[335803086,1724497841676,-500.0,0.00010994,2]
[335803088,1724497841685,-500.0,0.00010994,2]
[335803090,1724497841694,-500.0,0.00010994,2]
[335803092,1724497841704,-500.0,0.00010994,2]
[335803094,1724497841713,-538.93711602,0.00010994,2]
[335803096,1724497841724,-150.098844,0.00010996,2]
[335803098,1724497841733,-500.0,0.00010997,2]
[335803100,1724497841743,-500.0,0.00010997,2]
[335803102,1724497841752,-500.0,0.00010997,2]
[335803104,1724497841761,-481.83325273,0.00010997,2]
[335803106,1724497841771,-500.0,0.00010997,2]
[335803108,1724497841780,-500.0,0.00010997,2]
[335803110,1724497841788,-911.07,0.00010997,2]
[335803111,1724497841798,-500.0,0.00010997,2]
[335803113,1724497841807,-300.0,0.00010998,2]
[335803115,1724497841816,-480.69842665,0.00010998,2]
[335803117,1724497841825,-508.83311008,0.00010998,2]
[335803119,1724497841835,-520.806599,0.00010998,2]
[335803121,1724497841848,-525.14356775,0.00010998,2]
[335803123,1724497841857,-498.2408691,0.00010998,2]
[335803125,1724497841867,-516.67556559,0.00010998,2]
[335803127,1724497841876,-521.31347055,0.00010998,2]
[335803129,1724497841886,-512.61767117,0.00010998,2]